fUSD/lending_fUSD_20250120
["ID","MTS","AMOUNT","RATE_DAILY","PERIOD"]
[349631993,1737337858606,-500.0,0.00021924,2]
[349631994,1737337858616,-500.0,0.00021924,2]
[349631995,1737337858626,-500.0,0.00021924,2]
[349631996,1737337858636,-500.0,0.00021924,2]
[349631997,1737337858646,-500.0,0.00021924,2]
[349631998,1737337858655,-500.0,0.00021924,2]
[349631999,1737337858665,-1174.15,0.00021924,2]
[349632000,1737337858675,-1972.99,0.00021924,2]
[349632001,1737337858685,-500.0,0.00021924,2]
[349632002,1737337858694,-1090.8,0.00021924,2]
[349632003,1737337858704,-500.0,0.00021924,2]
[349632004,1737337858713,-500.0,0.00021924,2]
[349632005,1737337858723,-500.0,0.00021924,2]
[349632006,1737337858733,-1226.77,0.00021924,2]
[349632007,1737337858743,-9891.84,0.00021924,2]
[349632008,1737337858754,-566.83202495,0.00021924,2]
[349632009,1737337858764,-500.0,0.00021924,2]
[349632010,1737337858773,-6021.97,0.00021924,2]
[349632011,1737337858782,-878.6,0.00021924,2]
[349632012,1737337858793,-7634.27,0.00021924,2]
[349632013,1737337858802,-868.49,0.00021924,2]
[349632014,1737337858812,-1000.59,0.00021924,2]
[349632015,1737337858821,-588.7,0.00021924,2]
[349632016,1737337858831,-3187.45,0.00021924,2]
[349632017,1737337858841,-500.0,0.00021924,2]
[349632018,1737337858851,-500.0,0.00021924,2]
[349632019,1737337858861,-1809.02,0.00021924,2]
[349632020,1737337858871,-500.0,0.00021925,2]
[349632021,1737337858882,-528.03,0.00021925,2]
[349632022,1737337858892,-555.1,0.00021925,2]
[349632023,1737337858901,-1070.34,0.00021925,2]
[349632024,1737337858911,-494.86113666,0.00021925,2]
[349632025,1737337858921,-368.05573258,0.00021925,2]
[349632026,1737337858931,-500.0,0.00021925,2]
[349632027,1737337858941,-1733.27,0.00021925,2]
[349632028,1737337858950,-500.0,0.00021925,2]
[349632029,1737337858960,-500.0,0.00021925,2]
[349632030,1737337858971,-500.0,0.00021925,2]
[349632031,1737337858980,-642.13,0.00021925,2]
[349632032,1737337858990,-500.0,0.00021925,2]
[349632033,1737337858999,-826.45,0.00021925,2]
[349632034,1737337859009,-780.83,0.00021925,2]
[349632035,1737337859020,-887.57,0.00021925,2]
[349632036,1737337859030,-500.0,0.00021925,2]
[349632037,1737337859039,-500.0,0.00021925,2]
[349632038,1737337859051,-500.0,0.00021925,2]
[349632039,1737337859060,-1674.77,0.00021925,2]
[349632040,1737337859070,-500.0,0.00021925,2]
[349632041,1737337859079,-607.14,0.00021925,2]
[349632042,1737337859089,-625.4832755,0.00021925,2]
[349632043,1737337859097,-735.97,0.00021925,2]
[349632044,1737337859107,-500.0,0.00021925,2]
[349632045,1737337859116,-500.0,0.00021925,2]
[349632046,1737337859126,-500.0,0.00021925,2]
[349632047,1737337859136,-688.28,0.00021925,2]
[349632048,1737337859145,-500.0,0.00021925,2]
[349632049,1737337859154,-500.0,0.00021925,2]
[349632050,1737337859163,-646.8,0.00021925,2]
[349632051,1737337859177,-500.0,0.00021925,2]
[349632052,1737337859186,-185.64530188,0.00021925,2]
[349632053,1737337859195,-500.0,0.00021925,2]
[349632054,1737337859205,-627.86,0.00021925,2]
[349632055,1737337859215,-500.0,0.00021925,2]
[349632056,1737337859225,-500.0,0.00021925,2]
[349632057,1737337859235,-645.42,0.00021925,2]
[349632058,1737337859245,-500.0,0.00021925,2]
[349632059,1737337859254,-989.03,0.00021925,2]
[349632060,1737337859264,-461.87,0.00021976,2]
[349632061,1737337859274,-288.0167698,0.00021985,2]
[349632062,1737337859283,-288.0167698,0.00021985,2]
[349632063,1737337859294,-288.0167698,0.00021985,2]
[349632064,1737337859303,-288.0167698,0.00021985,2]
[349632065,1737337859314,-288.0167698,0.00021985,2]
[349632066,1737337859324,-150.79732667,0.0002199,2]
[349632067,1737337859334,-150.79732667,0.0002199,2]
[349632068,1737337859343,-886.68585447,0.00021997,2]
[349632069,1737337859354,-157.01121,0.00021998,4]
[349632070,1737337859363,-157.01121,0.00021998,3]
[349632071,1737337859374,-157.01121,0.00021998,2]
[349632072,1737337859384,-157.01121,0.00021998,7]
[349632073,1737337859393,-157.01121,0.00021998,8]
[349632074,1737337859402,-151.01121,0.00021998,9]
[349632075,1737337859412,-154.01121,0.00021998,2]
[349632076,1737337859422,-3709.35949762,0.00021999,7]
[349632077,1737337859432,-514.55038039,0.00021999,2]
[349632078,1737337859442,-288.0167698,0.00021999,2]
[349632079,1737337859452,-523.0,0.00021999,2]
[349632080,1737337859462,-115337.04444851,0.00022,2]
[349632081,1737337859471,-673.88834289,0.00022,2]
[349632082,1737337859481,-145116.54526601,0.00022,2]
[349632083,1737337859500,-1629.694975,0.00022,2]
[349632084,1737337859512,-60945.0,0.00022,2]
[349632085,1737337859524,-3776.99334266,0.00022,2]
[349632086,1737337859544,-405802.03278537,0.00022,2]
[349632087,1737337859560,-500.0,0.00021923,2]
[349632088,1737337859570,-381643.49470854,0.00022,2]
[349632089,1737337859617,-12038.84436102,0.00022,2]
[349632090,1737337859629,-422.13559114,0.00022,2]
[349632091,1737337859649,-10634.5999995,0.00022,2]
[349632092,1737337864327,10807.0,0.00022,120]
[349632094,1737338079000,200.0,0.00022,120]
[349632095,1737338081159,151.67,0.00010137,2]
[349632097,1737338103889,1715.56246217,0.00022,120]
[349632098,1737338748193,5002.68314035,0.00022,120]
[349632099,1737338987546,151.41,0.00010137,2]
[349632103,1737339032004,-550.0,0.00015,2]
[349632104,1737339032014,-500.0,0.00015,2]
[349632105,1737339032024,-120.44580536,0.00015,2]
[349632106,1737339032035,-379.55419464,0.00015,2]
[349632107,1737339032045,-159.56,0.00015975,2]
[349632108,1737339032054,-1556.12094925,0.00016813,2]
[349632109,1737339032064,-151.41,0.00016813,2]
[349632110,1737339032073,-216.14875273,0.000169,2]
[349632111,1737339032082,-459.20362468,0.00017,2]
[349632112,1737339032098,-140.79637532,0.00017,2]
[349632113,1737339032108,-176.0,0.000178,5]
[349632114,1737339032117,-250.0,0.00018706,2]
[349632115,1737339032126,-904.65,0.00019044,2]
[349632116,1737339032135,-100.52194173,0.00019583,2]
[349632117,1737339032146,-381.04805827,0.00019583,2]
[349632118,1737339032156,-250.0,0.00019614,2]
[349632119,1737339032165,-186.02,0.00019648,2]
[349632120,1737339032174,-1000.0,0.00019832,2]
[349632121,1737339032184,-250.0,0.00019845,2]
[349632122,1737339032194,-250.0,0.00019945,2]
[349632123,1737339032205,-300.0,0.00019999,2]
[349632124,1737339032216,-500.0,0.0002,5]
[349632125,1737339032226,-200.0,0.0002,2]
[349632126,1737339032235,-1447.83522107,0.0002,2]
[349632127,1737339032254,-535.8757586,0.0002,2]
[349632128,1737339032265,-988.3344858,0.0002,2]
[349632129,1737339032281,-484.3375096,0.0002,2]
[349632130,1737339032292,-476.67512439,0.0002,2]
[349632131,1737339032325,-624.82200762,0.0002,2]
[349632132,1737339032335,-895.5,0.00020001,30]
[349632133,1737339032345,-1221.8,0.00020122,2]
[349632134,1737339032354,-1820.0,0.000202,2]
[349632135,1737339032364,-678.59,0.00020224,2]
[349632136,1737339032373,-305.0,0.00020235,2]
[349632137,1737339032384,-406.59,0.00020236,2]
[349632138,1737339032393,-2303.66345293,0.00020236,2]
[349632139,1737339032405,-3920.22999278,0.00020236,2]
[349632140,1737339032417,-7838.63462938,0.00020236,2]
[349632141,1737339032429,-1568.00595115,0.00020236,2]
[349632142,1737339032444,-8269.46597376,0.00020236,2]
[349632143,1737339032454,-182.13,0.00020236,2]
[349632144,1737339032464,-167.68,0.00020236,2]
[349632145,1737339032474,-174.53,0.00020376,2]
[349632146,1737339032484,-152.564,0.00020814,2]
[349632147,1737339032493,-1181.053,0.00020814,2]
[349632148,1737339032504,-3927.945,0.00020814,2]
[349632149,1737339032514,-186.33,0.00020829,2]
[349632150,1737339032523,-1108.8627,0.00021,2]
[349632151,1737339032533,-1215.1047,0.00021002,2]
[349632153,1737339032543,-528.4686,0.00021002,2]
[349632155,1737339032552,-802.9468,0.00021002,2]
[349632157,1737339032561,-3071.851,0.00021002,2]
[349632159,1737339032571,-568.9460077,0.00021002,2]
[349632161,1737339032583,-1278.64943579,0.00021002,2]
[349632163,1737339032593,-63.28113552,0.00021088,2]
[349632224,1737339037919,-1110.25,0.00020814,2]
[349632225,1737339037929,-87.71886448,0.00021088,2]
[349632226,1737339037939,-150.0,0.000211,2]
[349632227,1737339037949,-1467.546,0.000211,2]
[349632228,1737339037958,-160.94786863,0.000211,2]
[349632229,1737339037968,-2500.0,0.000211,2]
[349632230,1737339037977,-604.25612383,0.00021101,2]
[349632231,1737339037988,-331.14387617,0.00021101,2]
[349632232,1737339037998,-954.12,0.00021101,2]
[349632233,1737339038010,-210.55452039,0.00021101,2]
[349632234,1737339038027,-1122.51022449,0.00021101,2]
[349632235,1737339038039,-459.98525512,0.00021101,2]
[349632236,1737339038048,-164.90806334,0.00021101,2]
[349632237,1737339038060,-253.3164178,0.00021101,2]
[349632238,1737339038071,-368.03551886,0.00021101,2]
[349632239,1737339038081,-500.0,0.00021101,2]
[349632240,1737339038090,-181.95257862,0.00021101,2]
[349632241,1737339038106,-545.82742138,0.00021101,2]
[349632242,1737339038116,-2073.47,0.00021101,2]
[349632243,1737339038125,-539.91,0.00021101,2]
[349632244,1737339038135,-500.0,0.00021101,2]
[349632245,1737339038145,-726.2,0.00021101,2]
[349632246,1737339038154,-639.0,0.00021101,2]
[349632247,1737339038164,-500.0,0.00021101,2]
[349632248,1737339038173,-712.65,0.00021101,2]
[349632249,1737339038183,-500.0,0.00021101,2]
[349632250,1737339038192,-500.0,0.00021101,2]
[349632251,1737339038202,-500.0,0.00021101,2]
[349632252,1737339038217,-500.0,0.00021101,2]
[349632253,1737339038226,-500.0,0.00021101,2]
[349632254,1737339038236,-500.0,0.00021101,2]
[349632255,1737339038247,-500.0,0.00021101,2]
[349632256,1737339038258,-517.5450727,0.00021101,2]
[349632257,1737339038268,-589.44,0.00021101,2]
[349632258,1737339038278,-502.01208874,0.00021101,2]
[349632259,1737339038288,-1522.48,0.00021101,2]
[349632260,1737339038298,-1373.63,0.00021101,2]
[349632261,1737339038307,-2880.55,0.00021101,2]
[349632262,1737339038317,-2412.13,0.00021101,2]
[349632263,1737339038328,-2916.46,0.00021101,2]
[349632264,1737339038338,-3066.35,0.00021101,2]
[349632265,1737339038347,-500.0,0.00021101,2]
[349632267,1737339038357,-548.94,0.00021101,2]
[349632269,1737339038367,-745.19,0.00021101,2]
[349632271,1737339038377,-842.95,0.00021101,2]
[349632273,1737339038387,-500.0,0.00021101,2]
[349632275,1737339038397,-500.0,0.00021101,2]
[349632277,1737339038406,-500.0,0.00021101,2]
[349632278,1737339038415,-500.0,0.00021101,2]
[349632279,1737339038425,-1410.34,0.00021101,2]
[349632280,1737339038434,-500.0,0.00021101,2]
[349632281,1737339038443,-880.74,0.00021101,2]
[349632282,1737339038452,-1327.01,0.00021101,2]
[349632283,1737339038461,-500.0,0.00021101,2]
[349632284,1737339038471,-500.0,0.00021101,2]
[349632285,1737339038480,-2399.07,0.00021101,2]
[349632286,1737339038489,-1639.49,0.00021101,2]
[349632287,1737339038499,-1086.19,0.00021101,2]
[349632288,1737339038508,-504.15845545,0.00021101,2]
[349632289,1737339038518,-500.0,0.00021101,2]
[349632290,1737339038527,-1263.76,0.00021101,2]
[349632291,1737339038537,-597.04,0.00021101,2]
[349632292,1737339038547,-1918.76,0.00021101,2]
[349632293,1737339038556,-1034.73,0.00021101,2]
[349632294,1737339038566,-1014.62,0.00021101,2]
[349632295,1737339038575,-1612.36,0.00021101,2]
[349632296,1737339038585,-500.0,0.00021101,2]
[349632297,1737339038596,-1729.6,0.00021101,2]
[349632298,1737339038605,-1088.36,0.00021101,2]
[349632299,1737339038615,-571.16,0.00021101,2]
[349632301,1737339038625,-1243.87,0.00021101,2]
[349632303,1737339038635,-500.0,0.00021101,2]
[349632305,1737339038644,-294.41217387,0.00021101,2]
[349632307,1737339038653,-1819.25870186,0.00021101,2]
[349632311,1737339038684,-397.02129814,0.00021101,2]
[349632314,1737339038702,-1294.64,0.00021101,2]
[349632315,1737339038719,-79.62270191,0.00021101,2]
[349632316,1737339038746,-287.9999955,0.00021101,2]
[349632317,1737339038772,-132.37730259,0.00021101,2]
[349632318,1737339038789,-500.0,0.00021101,2]
[349632319,1737339038806,-500.0,0.00021101,2]
[349632320,1737339038821,-543.79107208,0.00021101,2]
[349632321,1737339038835,-2056.4337,0.00021101,2]
[349632322,1737339038849,-1000.0,0.00021101,2]
[349632323,1737339038866,-301.439,0.00021101,2]
[349632324,1737339038881,-1847.59544343,0.00021102,2]
[349632325,1737339038897,-500.0,0.00021102,2]
[349632327,1737339038913,-500.0,0.00021102,2]
[349632329,1737339038929,-648.13668616,0.00021102,2]
[349632331,1737339038943,-535.265842,0.00021102,2]
[349632334,1737339038959,-500.0,0.00021102,2]
[349632336,1737339038974,-550.69627538,0.00021102,2]
[349632339,1737339038989,-654.27,0.00021102,2]
[349632341,1737339039001,-512.62747942,0.00021102,2]
[349632343,1737339039016,-504.05975768,0.00021102,2]
[349632346,1737339039033,-628.58,0.00021102,2]
[349632348,1737339039048,-702.66,0.00021102,2]
[349632350,1737339039060,-500.0,0.00021102,2]
[349632353,1737339039073,-500.0,0.00021102,2]
[349632355,1737339039087,-508.14308274,0.00021102,2]
[349632358,1737339039104,-500.0,0.00021102,2]
[349632360,1737339039115,-500.0,0.00021102,2]
[349632362,1737339039126,-517.61785974,0.00021102,2]
[349632365,1737339039140,-512.66194562,0.00021102,2]
[349632367,1737339039155,-504.39135523,0.00021102,2]
[349632370,1737339039170,-509.04679116,0.00021102,2]
[349632372,1737339039181,-1347.5,0.00021102,2]
[349632374,1737339039194,-539.83530882,0.00021102,2]
[349632377,1737339039210,-510.17691694,0.00021102,2]
[349632379,1737339039224,-500.0,0.00021102,2]
[349632382,1737339039242,-500.0,0.00021102,2]
[349632384,1737339039256,-506.02902315,0.00021102,2]
[349632387,1737339039271,-502.17,0.00021102,2]
[349632389,1737339039286,-500.0,0.00021102,2]
[349632391,1737339039307,-507.83085327,0.00021102,2]
[349632394,1737339039322,-505.12326326,0.00021102,2]
[349632396,1737339039336,-500.0,0.00021102,2]
[349632399,1737339039351,-604.21,0.00021102,2]
[349632401,1737339039368,-500.0,0.00021102,2]
[349632403,1737339039383,-508.08370976,0.00021102,2]
[349632406,1737339039398,-500.0,0.00021102,2]
[349632408,1737339039411,-432.62314788,0.00021102,2]
[349632411,1737339039425,-500.0,0.00021102,2]
[349632413,1737339039438,-500.0,0.00021102,2]
[349632415,1737339039452,-500.0,0.00021102,2]
[349632418,1737339039465,-605.45,0.00021102,2]
[349632420,1737339039477,-544.89,0.00021102,2]
[349632422,1737339039491,-520.69542714,0.00021102,2]
[349632425,1737339039504,-500.0,0.00021102,2]
[349632427,1737339039517,-500.0,0.00021102,2]
[349632430,1737339039530,-500.0,0.00021102,2]
[349632432,1737339039544,-500.0,0.00021102,2]
[349632435,1737339039559,-500.0,0.00021102,2]
[349632437,1737339039572,-500.0,0.00021102,2]
[349632439,1737339039585,-500.0,0.00021102,2]
[349632442,1737339039599,-176.80096309,0.00021102,2]
[349632444,1737339039613,-500.0,0.00021102,2]
[349632447,1737339039627,-500.0,0.00021102,2]
[349632449,1737339039640,-500.0,0.00021102,2]
[349632452,1737339039654,-500.0,0.00021102,2]
[349632454,1737339039667,-519.36839114,0.00021102,2]
[349632456,1737339039680,-500.0,0.00021102,2]
[349632459,1737339039694,-500.0,0.00021102,2]
[349632461,1737339039707,-500.0,0.00021102,2]
[349632464,1737339039721,-500.0,0.00021102,2]
[349632466,1737339039735,-500.0,0.00021102,2]
[349632469,1737339039748,-500.0,0.00021102,2]
[349632471,1737339039773,-500.0,0.00021102,2]
[349632473,1737339039789,-519.45389514,0.00021102,2]
[349632476,1737339039802,-513.72774649,0.00021102,2]
[349632478,1737339039818,-521.07488314,0.00021102,2]
[349632481,1737339039832,-221.99752424,0.00021102,2]
[349632483,1737339039847,-500.0,0.00021102,2]
[349632485,1737339039861,-500.0,0.00021102,2]
[349632488,1737339039876,-500.0,0.00021102,2]
[349632490,1737339039890,-476.56610033,0.00021102,2]
[349632493,1737339039903,-500.0,0.00021102,2]
[349632495,1737339039918,-510.96,0.00021102,2]
[349632499,1737339039932,-500.0,0.00021102,2]
[349632501,1737339039946,-782.98,0.00021102,2]
[349632503,1737339039960,-512.52622099,0.00021173,2]
[349632506,1737339039974,-152.22,0.0002119,2]
[349632508,1737339039988,-591.56989434,0.00021199,2]
[349632511,1737339040001,-185.16330491,0.00021199,2]
[349632513,1737339040016,-241.98382867,0.00021199,2]
[349632515,1737339040031,-259.71546598,0.00021199,2]
[349632518,1737339040048,-500.0,0.00021199,2]
[349632520,1737339040065,-500.0,0.00021199,2]
[349632523,1737339040081,-610.57641125,0.00021199,2]
[349632525,1737339040098,-500.0,0.00021199,2]
[349632528,1737339040117,-3710.49,0.00021199,2]
[349632530,1737339040129,-1542.48,0.00021199,2]
[349632532,1737339040140,-500.0,0.00021199,2]
[349632534,1737339040150,-1771.42,0.00021199,2]
[349632536,1737339040159,-500.0,0.00021199,2]
[349632538,1737339040169,-2481.48,0.00021199,2]
[349632540,1737339040179,-500.0,0.00021199,2]
[349632542,1737339040189,-1663.63,0.00021199,2]
[349632544,1737339040198,-765.05,0.00021199,2]
[349632576,1737339040421,-1453.06,0.00021199,2]
[349632581,1737339040538,-1392.54,0.00021199,2]
[349632583,1737339040553,-4526.19,0.00021199,2]
[349632585,1737339040563,-500.0,0.00021199,2]
[349632587,1737339040574,-2305.1,0.00021199,2]
[349632589,1737339040584,-526.85,0.00021199,2]
[349632591,1737339040593,-1429.6,0.00021199,2]
[349632593,1737339040603,-480.85879526,0.00021199,2]
[349632595,1737339040613,-701.0,0.00021199,2]
[349632597,1737339040623,-1362.13,0.00021199,2]
[349632599,1737339040632,-3424.87,0.00021199,2]
[349632601,1737339040642,-500.0,0.00021199,2]
[349632603,1737339040652,-1824.689101,0.00021199,2]
[349632605,1737339040663,-1443.02,0.00021199,2]
[349632607,1737339040673,-159.844328,0.00021199,2]
[349632609,1737339040683,-157.726337,0.00021199,2]
[349632611,1737339040693,-500.0,0.00021199,2]
[349632613,1737339040703,-527.51588174,0.00021199,2]
[349632616,1737339040713,-500.0,0.00021199,2]
[349632619,1737339040722,-4273.65,0.00021199,2]
[349632622,1737339040731,-523.43643973,0.00021199,2]
[349632625,1737339040741,-550.94910421,0.00021199,2]
[349632628,1737339040751,-516.61231911,0.00021199,2]
[349632630,1737339040761,-500.0,0.000212,2]
[349632632,1737339040771,-250.24981969,0.000212,2]
[349632634,1737339040780,-500.0,0.000212,2]
[349632636,1737339040790,-502.2495327,0.000212,2]
[349632638,1737339040799,-1228.69,0.000212,2]
[349632640,1737339040808,-917.93,0.000212,2]
[349632642,1737339040818,-500.0,0.000212,2]
[349632644,1737339040827,-699.67,0.000212,2]
[349632646,1737339040836,-500.0,0.000212,2]
[349632648,1737339040846,-500.0,0.000212,2]
[349632650,1737339040856,-625.41,0.000212,2]
[349632652,1737339040865,-1374.55,0.000212,2]
[349632654,1737339040875,-1666.42,0.000212,2]
[349632656,1737339040884,-614.07,0.000212,2]
[349632658,1737339040894,-500.0,0.000212,2]
[349632660,1737339040904,-500.0,0.000212,2]
[349632662,1737339040914,-500.0,0.000212,2]
[349632664,1737339040924,-500.0,0.000212,2]
[349632666,1737339040933,-500.0,0.000212,2]
[349632668,1737339040943,-235.93606569,0.000212,2]
[349632670,1737339040952,-758.5704028,0.000212,2]
[349632674,1737339040977,-363.60613795,0.000212,2]
[349632694,1737339041166,-375.07345925,0.000212,2]
[349632696,1737339041175,-70.49968662,0.000212,2]
[349632701,1737339041210,-257.04,0.000212,2]
[349632703,1737339041228,-172.46031338,0.000212,2]
[349632705,1737339041238,-500.0,0.000212,2]
[349632707,1737339041247,-500.0,0.000212,2]
[349632709,1737339041258,-433.5518069,0.000212,2]
[349632711,1737339041268,-146.88761735,0.000212,2]
[349632717,1737339041310,-802.24238265,0.000212,2]
[349632719,1737339041318,-524.5,0.000212,2]
[349632721,1737339041328,-500.0,0.000212,2]
[349632723,1737339041337,-500.0,0.000212,2]
[349632724,1737339041347,-1502.204827,0.000212,2]
[349632726,1737339041355,-500.0,0.000212,2]
[349632729,1737339041366,-839.65,0.000212,2]
[349632731,1737339041375,-1118.82,0.000212,2]
[349632733,1737339041385,-500.0,0.000212,2]
[349632735,1737339041395,-500.0,0.000212,2]
[349632737,1737339041405,-894.12,0.000212,2]
[349632739,1737339041414,-894.56,0.000212,2]
[349632741,1737339041423,-500.0,0.000212,2]
[349632743,1737339041433,-591.66,0.000212,2]
[349632744,1737339041442,-2119.31,0.000212,2]
[349632746,1737339041451,-711.95,0.000212,2]
[349632748,1737339041460,-609.44,0.000212,2]
[349632750,1737339041469,-500.0,0.000212,2]
[349632752,1737339041478,-500.0,0.000212,2]
[349632753,1737339041487,-978.46,0.000212,2]
[349632754,1737339041496,-1492.72,0.000212,2]
[349632755,1737339041505,-500.0,0.000212,2]
[349632756,1737339041514,-1644.16,0.000212,2]
[349632757,1737339041523,-500.0,0.000212,2]
[349632758,1737339041532,-177.784996,0.000212,2]
[349632759,1737339041542,-1854.46,0.000212,2]
[349632760,1737339041551,-500.0,0.000212,2]
[349632761,1737339041561,-500.0,0.000212,2]
[349632762,1737339041571,-500.0,0.000212,2]
[349632763,1737339041580,-2047.77,0.000212,2]
[349632764,1737339041589,-500.0,0.000212,2]
[349632765,1737339041598,-1095.23,0.000212,2]
[349632767,1737339041607,-500.0,0.000212,2]
[349632768,1737339041616,-1826.38,0.000212,2]
[349632770,1737339041626,-755.82,0.000212,2]
[349632772,1737339041636,-500.0,0.000212,2]
[349632774,1737339041646,-500.0,0.000212,2]
[349632776,1737339041655,-906.64,0.000212,2]
[349632778,1737339041666,-1106.79,0.000212,2]
[349632780,1737339041676,-500.0,0.000212,2]
[349632782,1737339041686,-500.0,0.000212,2]
[349632784,1737339041695,-2307.5,0.000212,2]
[349632786,1737339041705,-732.16,0.000212,2]
[349632788,1737339041715,-2029.85,0.000212,2]
[349632790,1737339041724,-1429.58,0.000212,2]
[349632792,1737339041733,-500.0,0.000212,2]
[349632794,1737339041743,-690.23,0.000212,2]
[349632796,1737339041753,-500.0,0.000212,2]
[349632798,1737339041762,-1736.93,0.000212,2]
[349632801,1737339041773,-597.12,0.000212,2]
[349632803,1737339041782,-500.0,0.000212,2]
[349632805,1737339041792,-789.86,0.000212,2]
[349632806,1737339041801,-1803.0,0.000212,2]
[349632808,1737339041811,-1983.48,0.000212,2]
[349632810,1737339041820,-500.0,0.000212,2]
[349632812,1737339041829,-500.0,0.000212,2]
[349632814,1737339041839,-1421.85,0.000212,2]
[349632816,1737339041848,-1383.9,0.000212,2]
[349632818,1737339041859,-500.0,0.000212,2]
[349632820,1737339041869,-500.0,0.000212,2]
[349632822,1737339041879,-723.74,0.000212,2]
[349632824,1737339041890,-500.0,0.000212,2]
[349632826,1737339041899,-500.0,0.000212,2]
[349632828,1737339041908,-500.0,0.000212,2]
[349632830,1737339041918,-500.0,0.000212,2]
[349632832,1737339041927,-520.3166671,0.000212,2]
[349632834,1737339041937,-500.0,0.000212,2]
[349632837,1737339041948,-500.0,0.000212,2]
[349632838,1737339041957,-500.0,0.000212,2]
[349632840,1737339041966,-507.44423763,0.000212,2]
[349632842,1737339041976,-500.0,0.000212,2]
[349632844,1737339041985,-1097.1,0.000212,2]
[349632846,1737339041995,-521.7112652,0.000212,2]
[349632848,1737339042005,-656.72,0.000212,2]
[349632850,1737339042014,-3437.22,0.000212,2]
[349632852,1737339042024,-500.0,0.000212,2]
[349632854,1737339042033,-500.0,0.000212,2]
[349632857,1737339042044,-515.53137173,0.000212,2]
[349632859,1737339042054,-466.59187687,0.000212,2]
[349632861,1737339042063,-500.0,0.000212,2]
[349632862,1737339042073,-512.2271667,0.000212,2]
[349632864,1737339042082,-1457.77,0.000212,2]
[349632867,1737339042092,-500.0,0.000212,2]
[349632869,1737339042102,-1937.12,0.000212,2]
[349632871,1737339042111,-518.96250218,0.000212,2]
[349632873,1737339042120,-500.0,0.000212,2]
[349632875,1737339042130,-506.95133505,0.000212,2]
[349632877,1737339042140,-7882.15,0.000212,2]
[349632879,1737339042149,-507.00691562,0.000212,2]
[349632881,1737339042159,-500.0,0.000212,2]
[349632882,1737339042168,-508.63773406,0.000212,2]
[349632884,1737339042179,-1429.61,0.000212,2]
[349632886,1737339042188,-9451.31,0.000212,2]
[349632888,1737339042197,-1135.25,0.000212,2]
[349632890,1737339042207,-500.0,0.000212,2]
[349632892,1737339042216,-318.01249508,0.000212,2]
[349632895,1737339042233,-187.1923101,0.000212,2]
[349632897,1737339042242,-500.0,0.000212,2]
[349632899,1737339042251,-514.53763117,0.000212,2]
[349632901,1737339042260,-500.0,0.000212,2]
[349632903,1737339042270,-502.42100713,0.000212,2]
[349632905,1737339042280,-500.0,0.000212,2]
[349632907,1737339042292,-507.84081904,0.000212,2]
[349632909,1737339042301,-500.0,0.000212,2]
[349632911,1737339042311,-500.0,0.000212,2]
[349632913,1737339042320,-500.0,0.000212,2]
[349632915,1737339042329,-500.0,0.000212,2]
[349632917,1737339042339,-503.45493798,0.000212,2]